Cogmind - Beta 12 @@@ ROGUE MODE // 2023.06.13 @ 21:06:24 Player: Broncho Result: Destroyed by G-47 Trooper with Particle Gun Performance ------------- Evolutions (0) 0 Regions Visited (1) 200 Robots Destroyed (10) 50 Value Destroyed (273) 273 Prototype IDs (0) 0 Alien Tech Used (0) 0 Bonus (0) 0 TOTAL SCORE: 523 Bonus ------- None Cogmind --------- Core Integrity 0/250 Matter 295/300 Energy 250/250 System Corruption 0% Temperature Cool (9) Movement Walking (190) Ox1 Location -10/Materials Parts ------- > --- POWER (1) -------- Ion Engine > --- PROPULSION (2) --- Aluminum Leg > --- UTILITY (2) ------ Medium Storage Unit Targeting Computer > --- WEAPON (2) ------- Light Assault Rifle Mining Claw > --- INVENTORY (10) --- Ion Engine Medium Storage Unit Seismic Detector Targeting Computer Propulsion Shielding Weapon Shielding EM Pulse Gun Small Laser Light Assault Rifle Peak State ------------ > --- POWER ------------ Ion Engine > --- PROPULSION ------- Aluminum Leg Aluminum Leg > --- UTILITY ---------- Medium Storage Unit Targeting Computer > --- WEAPON ----------- EM Pulse Gun Medium Laser > --- INVENTORY -------- Ion Engine Light Treads Light Treads Aluminum Leg Medium Storage Unit Large Storage Unit Targeting Computer Propulsion Shielding Small Laser Mining Claw [Rating: 8] Favorites ----------- Power Ion Engine Engine Ion Engine Propulsion Aluminum Leg Leg Aluminum Leg Utility Medium Storage Unit Storage Medium Storage Unit Processor Targeting Computer Weapon Mining Claw Energy Gun Medium Laser Ballistic Gun Light Assault Rifle Slashing Weapon Mining Claw Build | -11 -10 ------- Run | Jun Mat Slots Evolved . | . . Power . | . . Propulsion . | . . Utility . | . . Weapon . | . . Parts Attached 11 | . 11 Power 2 | . 2 Engine 2 | . 2 Core . | . . Reactor . | . . Propulsion 3 | . 3 Treads . | . . Leg 3 | . 3 Wheel . | . . Hover . | . . Flight . | . . Utility 2 | . 2 Device . | . . Storage 1 | . 1 Processor 1 | . 1 Hackware . | . . Protection . | . . Artifact . | . . Weapon 4 | . 4 Energy Gun 2 | . 2 Energy Cannon . | . . Ballistic Gun 1 | . 1 Ballistic Cannon . | . . Launcher . | . . Special Weapon . | . . Impact Weapon . | . . Slashing Weapon 1 | . 1 Piercing Weapon . | . . Special Melee Weapon . | . . Unidentified Prototypes . | . . Parts Lost 4 | . 4 Power . | . . Propulsion 3 | . 3 Utility . | . . Weapon 1 | . 1 Highest Loss Streak 2 | . 2 To Critical Strikes . | . . Average Slot Usage (%) 95 | . 95 Engine 14 | . 14 Leg 27 | . 27 Storage 14 | . 14 Processor 11 | . 11 Energy Gun 13 | . 13 Ballistic Gun 1 | . 1 Slashing Weapon 11 | . 11 Naked Turns . | . . Heaviest Build 19 | 13 19 Greatest Support 20 | 20 20 Greatest Overweight (x) 1 | . 1 Average Overweight (x) . | . . Largest Inventory Capacity 10 | 8 10 Average Capacity 9 | 8 9 Most Carried 10 | 6 10 Average Carried 7 | 6 7 Final Capacity 10 | 8 10 Final Carried 9 | 6 9 Class Distribution -------------------- 100% | Mutant Dominant Class ---------------- Mutant | -10/Materials Resources | -11 -10 ----------- Run | Jun Mat Matter Collected 295 | 183 112 Remotely . | . . Salvage Created 386 | . 386 Parts 18 | . 18 Haulers Intercepted 1 | . 1 Recyclers Shooed . | . . Parts Field Recycled . | . . Retrieved Matter . | . . Parts Self-Destructed . | . . Prevented . | . . Kills | -11 -10 ------- Run | Jun Mat Combat Hostiles Destroyed 9 | . 9 Melee 9 | . 9 Classes Destroyed 3 | . 3 Hauler 1 | . 1 Swarmer 2 | . 2 Grunt 7 | . 7 Best Kill Streak 4 | . 4 Combat Bots Only 4 | . 4 Max Kills in Single Turn 1 | . 1 Gunslinging . | . . Exploded . | . . Melee 1 | . 1 Uniques/NPCs Destroyed . | . . Combat | -11 -10 -------- Run | Jun Mat Damage Taken 936 | . 936 Core 263 | . 263 Absorbed by Shields . | . . Core Remaining (%) 100 | 100 . Volleys Fired . | . . Largest . | . . Hottest . | . . Shots Fired . | . . Gun . | . . Cannon . | . . Launcher . | . . Special . | . . Kinetic . | . . Thermal . | . . Explosive . | . . Electromagnetic . | . . Robot Hit Streak . | . . Robot Miss Streak . | . . Penetration Max . | . . Secondary Targets . | . . Shots Hit Robots 33 | . 33 Core Hits 12 | . 12 Critical Kills . | . . Critical Parts Destroyed . | . . Critical Strikes . | . . Melee Attacks 58 | . 58 Impact . | . . Slashing 58 | . 58 Piercing . | . . Sneak Attacks 1 | . 1 Combat Hostiles . | . . Follow-up Attacks . | . . Damage Inflicted 782 | . 782 Guns . | . . Cannons . | . . Explosions . | . . Melee 782 | . 782 Ramming . | . . Kinetic . | . . Thermal . | . . Explosive . | . . Electromagnetic . | . . Impact . | . . Slashing 782 | . 782 Piercing . | . . Highest Corruption . | . . Average Corruption . | . . Corruption Purged . | . . Corruption Blocked . | . . Overload Shots . | . . Overflow Damage 17 | . 17 Projectiles . | . . Explosions . | . . Melee 17 | . 17 Knockbacks . | . . Impact . | . . Kinetic . | . . Secondary . | . . Self-Inflicted Damage . | . . Shots . | . . Rammed . | . . Targets Rammed . | . . Kicked . | . . Crushed . | . . Highest Temperature 8 | . 8 Average Temperature 8 | . 8 Received Heat Transfer 366 | . 366 Siege Activations . | . . Robots Corrupted . | . . Combat Hostiles . | . . Parts Fried . | . . Impact Corruptions . | . . Robots Melted . | . . Combat Hostiles . | . . Parts Melted . | . . Heat Transferred . | . . Parts Sabotaged . | . . Parts Stolen . | . . Parts Stripped . | . . Power Chain Reactions . | . . Missiles Intercepted . | . . Alert | -11 -10 ------- Run | Jun Mat Peak Influence 216 | . 216 Initial . | . . Average 62 | . 64 Maximum Alert Level 1 | . 1 Low Security (%) 92 | 100 91 Level 1 7 | . 8 Level 2 . | . . Level 3 . | . . Level 4 . | . . Level 5 . | . . High Security . | . . Max Security . | . . Squads Dispatched 2 | . 2 Investigation 2 | . 2 Extermination . | . . Reinforcement . | . . Assault . | . . Garrison . | . . Intercept . | . . Searches Triggered . | . . Construction Impeded . | . . Haulers Reinforced . | . . Active Scanning Responses . | . . Cargo Convoy Interrupts . | . . Stealth | -11 -10 --------- Run | Jun Mat Distress Signals 2 | . 2 Communications Jammed . | . . Distress Signals . | . . Times Spotted 21 | . 21 Peak Tracking Total 6 | . 6 Tactical Retreats 4 | . 4 Traps | -11 -10 ------- Run | Jun Mat Traps Triggered 2 | . 2 Indirectly . | . . Trap Hack Attempts . | . . Triggered . | . . Disarmed . | . . Reprogrammed . | . . Reused . | . . Traps Extracted . | . . Installed . | . . Triggered . | . . Machines | -11 -10 ---------- Run | Jun Mat Machines Disabled . | . . Max in Single Turn . | . . Machines Repaired . | . . Machines Sabotaged . | . . Overloaded Fab Kills . | . . Hacking | -11 -10 --------- Run | Jun Mat Machines Accessed 5 | . 5 Terminals 4 | . 4 Fabricators . | . . Repair Stations . | . . Recycling Units 1 | . 1 Scanalyzers . | . . Garrison Access . | . . Total Hacks 11 | . 11 Successful 4 | . 4 Failed 7 | . 7 Catastrophic . | . . Database Lockouts . | . . Manual 3 | . 3 Terminals 9 | . 9 Fabricators . | . . Repair Stations . | . . Recycling Units 2 | . 2 Scanalyzers . | . . Garrison Access . | . . Terminal Hacks 3 | . 3 Branch Access Points 1 | . 1 Locate Traps 1 | . 1 Hauler Manifests 1 | . 1 Fabricator Hacks . | . . Repair Station Hacks . | . . Recycling Unit Hacks 1 | . 1 Report Inventory 1 | . 1 Scanalyzer . | . . Garrison Access Hacks . | . . Unauthorized Hacks . | . . Terminals . | . . Fabricators . | . . Repair Stations . | . . Recycling Units . | . . Scanalyzers . | . . Garrison Access . | . . Data Cores Recovered . | . . Used . | . . Hacking Detections 5 | . 5 Full Trace Events . | . . Feedback Events . | . . Feedback Blocked . | . . Robot Schematics Acquired . | . . Robots Built . | . . Authchips . | . . Time . | . . Total Robot Build Rating . | . . Part Schematics Acquired . | . . Parts Built . | . . Authchips . | . . Time . | . . Total Part Build Rating . | . . Parts Repaired . | . . Time . | . . Parts Recycled . | . . Recycled Matter . | . . Retrieved Matter . | . . Retrieved Components . | . . Parts Scanalyzed . | . . Part Schematics Acquired . | . . Parts Damaged . | . . Bothacking | -11 -10 ------------ Run | Jun Mat Used RIF Installer . | . . Robots Hacked . | . . Non-combat . | . . Combat . | . . Robot Hacks Applied . | . . Relay Couplers Released . | . . Fabnet Peak Effective % . | . . Robots Rewired . | . . Allies Hacked . | . . Hacks Repelled . | . . Allies | -11 -10 -------- Run | Jun Mat Total Allies . | . . Largest Group . | . . Highest-Rated Group . | . . Highest-Rated Ally . | . . Total Orders . | . . Ally Attacks . | . . Total Damage . | . . Kills . | . . Allies Corrupted . | . . Allies Melted . | . . Intel | -11 -10 ------- Run | Jun Mat Robot Analysis Total . | . . Derelict Logs Recovered . | . . Drone Launches . | . . Drone Recoveries . | . . Exploration | -11 -10 ------------- Run | Jun Mat Turns Passed 904 | 32 872 Spaces Moved 546 | 27 519 Core . | . . Treads . | . . Legs 546 | 27 519 Wheels . | . . Hover . | . . Flight . | . . Fastest Speed 120 | 120 120 Average Speed 120 | 120 120 Slowest Speed 190 | 120 190 Overloaded Moves . | . . Propulsion Burnouts . | . . Robots Hopped . | . . Cave-ins Triggered . | . . Exploration Rate (%) 36 | 3 69 Regions Visited 1 Branch Regions . Pre-discovered Areas . | . . Known Exits Taken . | . . Unknown Exits Taken 1 | 1 . Scrap Searched . | . . Spaces Dug 2 | . 2 Terrain Destroyed 2 | . 2 Melee 2 | . 2 Projectile . | . . AOE . | . . Terrain Rammed . | . . Walls Destroyed . | . . Machines Disabled . | . . Actions | -11 -10 --------- Run | Jun Mat Total 679 | 26 653 Wait 43 | . 43 Move 545 | 26 519 Hop . | . . Pick Up 10 | . 10 Fast Attach 3 | . 3 Attach 4 | . 4 Detach 3 | . 3 Swap 4 | . 4 Drop 9 | . 9 Fire . | . . Melee 58 | . 58 Ram . | . . Kick . | . . Crush . | . . Escape Stasis . | . . Rewire . | . . Trap . | . . Miscellaneous . | . . Route ------- -11/Junkyard -10/Materials (discovered 3 exits: [*Mat] / *Min x2) History --------- Turn | Location | Event 1 | -11/Junkyard | Discovered new exit (range 3) 33 | -11/Junkyard | Entered Materials 303 | -10/Materials | Build established: Mutant 382 | -10/Materials | Discovered new exit (range 16) 538 | -10/Materials | Discovered new exit (range 4) 640 | -10/Materials | Core integrity fell below 50% 793 | -10/Materials | Discovered new exit (range 15) 859 | -10/Materials | Identified exit to Mines 884 | -10/Materials | Core integrity fell below 20% 905 | -10/Materials | Destroyed by G-47 Trooper with Particle Gun Last Messages --------------- 00738_ Extracted 4 energy. 00740_ K-01 Serf collects debris. 00740_ Extracted 4 energy. 00743_ K-01 Serf collects debris. 00743_ Extracted 4 energy. 00746_ K-01 Serf collects debris. 00751_ Extracted 4 energy. 00754_ K-01 Serf collects debris. 00793_ EXIT=FOUND 00805_ Acquired Lgt. Assault Rifle. 00845_ Connecting with Terminal... >>Access(Branch) Found 2 branch access points: (58,13) Mines (9,13) Mines Map updated. 00865_ Acquired Seismic Detector. 00895_ Destroyed Imp. Heat Sink. 00897_ Aluminum Leg destroyed. 00903_ Critical hit (Burn: +37). Map ----- +----------------------------------------------------+ | # """ #?????# ## """#???? | | # ?? #?????# # ! """#???? | | #####??###?????# # """#???? | | "" #??????????????# + #???? | | """#??????????????# # """#???? | | """#??????????????# # """#???? | | """#?????????????####+####### ## """#???? | | ""???????????????# #?# ## #???? | | ???????????????# ### ###########???? | | ###??????????????# + ##############? | | ???????????#####?# #### # #? | | ???????????# # #??# # #? | | ???????????# # #??# # #? | | ???????????# + #??# + #? | | ???????????# # #??# # """T""" #? | | ???????????# # #?## ####+#########? | | ???????????## ?####+####### ### ##???????? | | ????????????# ????# #???????? | | ????????????+ ???### T #???????? | | ????????????# #???????? | | ????????????# #########g### ###+##???????? | | ????????????# ??????????# #?### ###????????????? | | ????????????#???????????# #???# #??????????????? | | ????????????????????????# #???# #??????????????? | | ????????????????????????# #???# #??????????????? | | ????????????????????????#@#???# #??????????????? | | ????????????????????????#g#???#+#??????????????? | | ????????????????????????# ??? ???????????????? | | ????????????????????????# ??? ???????????????? | | ????????????????????????# ?? ???????????????? | | ????????????????????????# ?? ???????????????? | | ????????????????????????# ??????????????????? | | ????????????????????????# ??????????????????? | | ????????????????????????# ?????????????????? | | ????????????????????????? ?????????????????? | | ?????????????????????????######????????????????? | | ???????????????????????????????????????????????? | | ???????????????????????????????????????????????? | | ???????????????????????????????????????????????? | | ???????????????????????????????????????????????? | | ???????????????????????????????????????????????? | | ???????????????????????????????????????????????? | | ???????????????????????????????????????????????? | | ???????????????????????????????????????????????? | | ???????????????????????????????????????????????? | | ???????????????????????????????????????????????? | | ???????????????????????????????????????????????? | | ???????????????????????????????????????????????? | | ???????????????????????????????????????????????? | | ???????????????????????????????????????????????? | +----------------------------------------------------+ Best States ------------- Heat Dissipation 25 Energy Generation 10 Energy Capacity 250 Matter Stores 300 Matter Capacity 300 Sight Range 16 Terrain Scan Density 10 Evasion (%) 55 Targeting Accuracy 5 Item Schematics ----------------- None Robot Schematics ------------------ None Fabricated ------------ Nothing Alien Tech Used ----------------- None Achievements -------------- None Challenges ------------ None Game ------ Seed ShieldEncryptedExpander Manual? 0 Play Time 00:16:12 Cumulative 113.7 hours Start 2023.06.13 @ 20:50:12 End 2023.06.13 @ 21:06:24 Sessions 1 Manual Loads 0 Difficulty Rogue Special Mode None Game No. 27 Rogue 22 Adventurer 5 Explorer 0 Win Type - Total 0 Types 0/0/0/0/0/0/0/0/0 Lore% 26 Gallery% 44 Achievement% 33 Wizard Run 0 Options --------- ASCII 1 Keyboard 1 Movement Numpad Keybinds 0 Fullscreen 2 Font 24/Smallcaps Map View 76x50 Tactical HUD 1 Map Filters NONE Filters NONE Steam 1 RUN: c8bb0732-a917-4d84-8a66-877ed0eb6e6e